bitfinex/quotes_BTCUSD_20230901
["timestamp","ask_amount","ask_price","bid_price","bid_amount"]
[1693532710484,0.1625,26017.0,26016.0,2.61719678]
[1693532710683,0.1625,26017.0,26016.0,2.61713678]
[1693532710885,0.1625,26017.0,26016.0,2.61863678]
[1693532711104,0.1625,26017.0,26016.0,2.61731678]
[1693532711307,0.1625,26017.0,26016.0,2.62661678]
[1693532711559,0.1625,26017.0,26016.0,2.62643678]
[1693532711697,0.1625,26017.0,26016.0,2.62637678]
[1693532711893,0.1625,26017.0,26016.0,2.62259678]
[1693532712120,0.1625,26017.0,26016.0,2.61845678]
[1693532712281,0.1625,26017.0,26016.0,2.62145678]
[1693532712507,0.1625,26017.0,26016.0,2.61977678]
[1693532712712,0.1625,26017.0,26016.0,2.62229678]
[1693532712910,0.1625,26017.0,26016.0,2.62493678]
[1693532713210,0.1625,26017.0,26016.0,2.63357678]
[1693532713418,0.1625,26017.0,26016.0,2.6645988]
[1693532713623,0.1625,26017.0,26016.0,2.6649588]
[1693532713821,0.1625,26017.0,26016.0,2.6630388]
[1693532714023,0.1625,26017.0,26016.0,2.6631588]
[1693532714224,0.1625,26017.0,26016.0,2.6633388]
[1693532714513,0.1625,26017.0,26016.0,2.6632788]
[1693532714715,0.1625,26017.0,26016.0,2.6612988]
[1693532714850,0.1625,26017.0,26016.0,2.6611188]
[1693532715081,0.1625,26017.0,26016.0,2.6610588]
[1693532715449,0.1625,26017.0,26016.0,2.6607588]
[1693532715653,0.1625,26017.0,26016.0,2.6606388]
[1693532715855,0.1625,26017.0,26016.0,2.6615388]
[1693532716051,0.1625,26017.0,26016.0,2.6614788]
[1693532716257,0.1625,26017.0,26016.0,2.6616588]
[1693532716471,0.1625,26017.0,26016.0,2.6613588]
[1693532716868,0.1625,26017.0,26016.0,2.6612988]
[1693532717163,0.1625,26017.0,26016.0,2.6614788]
[1693532717411,0.1625,26017.0,26016.0,2.6616588]
[1693532717569,0.1625,26017.0,26016.0,2.6614188]
[1693532717971,0.1625,26017.0,26016.0,2.6613588]
[1693532718397,0.1625,26017.0,26016.0,2.6612988]
[1693532718547,0.1625,26017.0,26016.0,2.6618988]
[1693532718752,0.1625,26017.0,26016.0,2.6617788]
[1693532718968,0.1625,26017.0,26016.0,2.6607588]
[1693532719169,0.1625,26017.0,26016.0,2.6609988]
[1693532719377,0.001,26017.0,26016.0,3.0194588]
[1693532719577,0.001,26017.0,26016.0,3.0063188]
[1693532719781,0.001,26017.0,26016.0,3.0052988]
[1693532720085,0.001,26017.0,26016.0,3.0057188]
[1693532720305,0.001,26017.0,26016.0,3.0056588]
[1693532720524,0.001,26017.0,26016.0,2.9759388]
[1693532720740,0.001,26017.0,26016.0,3.0133588]
[1693532720921,0.001,26017.0,26016.0,3.0132988]
[1693532721122,0.001,26017.0,26016.0,3.0134188]
[1693532721320,0.001,26017.0,26016.0,3.0132388]
[1693532721526,0.1563,26019.0,26016.0,2.9667988]
[1693532721730,0.1563,26019.0,26018.0,0.1182]
[1693532722048,0.1563,26019.0,26018.0,2.81137878]
[1693532722272,0.1563,26019.0,26018.0,2.88901878]
[1693532722421,0.1563,26019.0,26018.0,2.81137878]
[1693532722992,0.1593,26019.0,26018.0,2.92463878]
[1693532723197,0.1593,26019.0,26018.0,2.92811878]
[1693532723326,0.1593,26019.0,26018.0,2.92559878]
[1693532723529,0.1593,26019.0,26018.0,2.88537878]
[1693532723732,0.1593,26019.0,26018.0,2.96925878]
[1693532723952,0.003,26019.0,26018.0,2.98877878]
[1693532724154,0.003,26019.0,26018.0,2.98763878]
[1693532724309,0.003,26019.0,26018.0,2.90537878]
[1693532725121,0.003,26019.0,26018.0,3.02157878]
[1693532725331,0.003,26019.0,26018.0,3.34161878]
[1693532725546,0.003,26019.0,26018.0,3.34281878]
[1693532725766,0.003,26019.0,26018.0,3.34245878]
[1693532725963,0.003,26019.0,26018.0,3.33363878]
[1693532726167,0.003,26019.0,26018.0,3.33117878]
[1693532726394,0.003,26019.0,26018.0,3.33417878]
[1693532726610,0.003,26019.0,26018.0,3.33405878]
[1693532726818,0.003,26019.0,26018.0,3.33357878]
[1693532727217,0.003,26019.0,26018.0,3.24537878]
[1693532728038,0.003,26019.0,26018.0,3.22537878]
[1693532730026,0.003,26019.0,26018.0,3.29161878]
[1693532730178,0.003,26019.0,26018.0,3.29263878]
[1693532730389,0.003,26019.0,26018.0,3.22537878]
[1693532731338,0.003,26019.0,26018.0,3.28999878]
[1693532731587,0.003,26019.0,26018.0,3.22537878]
[1693532736398,0.003,26019.0,26018.0,3.29989878]
[1693532736565,0.003,26019.0,26018.0,3.33507878]
[1693532736768,0.003,26019.0,26018.0,3.33471878]
[1693532737156,0.003,26019.0,26018.0,3.33621878]
[1693532737309,0.003,26019.0,26018.0,3.33105878]
[1693532737698,0.003,26019.0,26018.0,3.33165878]
[1693532737874,0.003,26019.0,26018.0,3.33147878]
[1693532738093,0.003,26019.0,26018.0,3.33075878]
[1693532738300,0.003,26019.0,26018.0,3.33081878]
[1693532738702,0.003,26019.0,26018.0,3.32907878]
[1693532738907,0.003,26019.0,26018.0,3.32757878]
[1693532739107,0.003,26019.0,26018.0,3.32721878]
[1693532739312,0.003,26019.0,26018.0,3.32715878]
[1693532739513,0.003,26019.0,26018.0,3.24537878]
[1693532740838,0.003,26019.0,26018.0,3.32055878]
[1693532741046,0.003,26019.0,26018.0,3.32067878]
[1693532741245,0.003,26019.0,26018.0,3.24537878]
[1693532741817,0.003,26019.0,26018.0,3.32103878]
[1693532742021,0.003,26019.0,26018.0,3.32157878]
[1693532742221,0.003,26019.0,26018.0,3.24537878]
[1693532743292,0.003,26019.0,26018.0,2.64885578]
[1693532743445,0.31134659,26019.0,26018.0,2.261769]
[1693532744218,0.44872154,26019.0,26018.0,2.261769]
[1693532744538,0.35713824,26019.0,26018.0,2.261769]
[1693532745505,0.65613314,26019.0,26018.0,2.261769]
[1693532747621,0.48520374,26019.0,26018.0,0.074]
[1693532747826,1.73844805,26019.0,26018.0,0.074]
[1693532748041,2.3804984,26019.0,26018.0,0.074]
[1693532748240,2.50775449,26019.0,26018.0,0.074]
[1693532748450,2.3804984,26019.0,26018.0,0.074]
[1693532748680,2.3774984,26019.0,26018.0,0.037]
[1693532748904,0.02,26016.0,26015.0,0.1182]
[1693532749102,0.43325104,26016.0,26015.0,0.1182]
[1693532749314,0.5028294,26016.0,26015.0,0.1182]
[1693532749502,0.68647403,26016.0,26015.0,0.1182]
[1693532749725,0.69793971,26016.0,26015.0,0.1182]
[1693532749902,0.92752362,26016.0,26015.0,0.1182]
[1693532750280,0.69793971,26016.0,26015.0,0.1182]
[1693532750784,0.69793971,26016.0,26015.0,0.1332]
[1693532750984,0.69893971,26016.0,26015.0,0.1332]
[1693532751469,0.44469422,26016.0,26015.0,0.1332]
[1693532751643,0.44569422,26016.0,26015.0,0.1332]
[1693532751882,0.44569422,26016.0,26015.0,0.70979]
[1693532752088,0.34235082,26016.0,26015.0,0.69479]
[1693532752291,0.34235082,26016.0,26015.0,0.70979]
[1693532752496,0.15770619,26016.0,26015.0,1.28638]
[1693532752699,0.15770619,26016.0,26015.0,1.27138]
[1693532752932,0.15870619,26016.0,26015.0,1.27138]
[1693532753158,0.15870619,26016.0,26015.0,1.28638]
[1693532753361,0.34235082,26016.0,26015.0,1.28638]
[1693532753563,0.15870619,26016.0,26015.0,1.27138]
[1693532753763,0.15870619,26016.0,26015.0,1.29938]
[1693532754180,0.11279569,26016.0,26015.0,2.34375678]
[1693532754383,0.09179569,26016.0,26015.0,2.35781678]
[1693532754583,0.11179569,26016.0,26015.0,2.34809678]
[1693532754785,0.11279569,26016.0,26015.0,2.29505678]
[1693532755168,0.11279569,26016.0,26015.0,2.26705678]
[1693532755318,0.50689808,26016.0,26015.0,2.24705678]
[1693532755518,0.36919189,26016.0,26015.0,2.26205678]
[1693532755879,0.50689808,26016.0,26015.0,2.24705678]
[1693532756086,0.36919189,26016.0,26015.0,2.24705678]
[1693532756393,0.36919189,26016.0,26015.0,2.27505678]
[1693532757875,0.50689808,26016.0,26015.0,2.27505678]
[1693532758079,0.41510239,26016.0,26015.0,2.27505678]
[1693532758325,0.50688977,26016.0,26015.0,2.27505678]
[1693532758653,0.11278738,26016.0,26015.0,2.27505678]
[1693532760516,0.38077157,26016.0,26015.0,1.69846678]
[1693532760731,0.51847776,26016.0,26015.0,1.69846678]
[1693532761333,0.38077157,26016.0,26015.0,1.69846678]
[1693532762162,0.38077157,26016.0,26015.0,1.31138]
[1693532762473,0.51847776,26016.0,26015.0,1.31138]
[1693532763563,0.38077157,26016.0,26015.0,1.31138]
[1693532769930,0.38077157,26016.0,26015.0,0.73479]
[1693532772698,0.51847776,26016.0,26015.0,0.73479]
[1693532773021,0.42669038,26016.0,26015.0,0.73479]
[1693532773794,0.51844487,26016.0,26015.0,0.73479]
[1693532779451,0.42669038,26016.0,26015.0,0.73479]
[1693532780656,0.15870619,26016.0,26015.0,0.04]
[1693532780993,1.28860374,26016.0,26015.0,0.04]
[1693532781195,2.31077159,26016.0,26015.0,0.04]
[1693532781357,3.04088859,26016.0,26015.0,0.04]
[1693532781553,3.00907534,26016.0,26015.0,0.04]
[1693532781781,3.41317534,26016.0,26015.0,0.04]
[1693532786202,3.15065,26016.0,26015.0,0.04]
[1693532786448,2.76356322,26016.0,26015.0,0.04]
[1693532786650,2.10118768,26016.0,26015.0,0.04]
[1693532789350,2.35338123,26016.0,26015.0,0.04]
[1693532791600,2.10118768,26016.0,26015.0,0.04]
[1693532791826,2.37593759,26016.0,26015.0,0.04]
[1693532800196,2.5970118,26016.0,26015.0,0.04]
[1693532801266,2.37593759,26016.0,26015.0,0.04]
[1693532801385,2.59979164,26016.0,26015.0,0.04]
[1693532803259,2.32504173,26016.0,26015.0,0.04]
[1693532803458,2.59979164,26016.0,26015.0,0.04]
[1693532803863,2.37593759,26016.0,26015.0,0.04]
[1693532807511,3.81191531,26016.0,26015.0,0.04]
[1693532808253,3.85091531,26016.0,26015.0,0.028]
[1693532808457,3.88791531,26016.0,26015.0,0.031]
[1693532808658,0.02,26012.0,26009.0,0.0497866]
[1693532808861,0.0918025,26010.0,26009.0,0.0497866]
[1693532809060,0.6685035,26010.0,26009.0,0.0497866]
[1693532809319,0.6885035,26010.0,26007.0,0.890564]
[1693532809520,0.6885035,26010.0,26007.0,0.694964]
[1693532809722,0.19798199,26009.0,26007.0,0.694964]
[1693532810744,0.19798199,26009.0,26007.0,0.710964]
[1693532811721,0.19898199,26009.0,26007.0,0.722964]
[1693532811922,0.19798199,26009.0,26007.0,1.271731]
[1693532812260,0.19998199,26009.0,26007.0,1.325731]
[1693532812836,0.19998199,26009.0,26007.0,1.296731]
[1693532813189,0.19998199,26009.0,26007.0,1.333731]
[1693532813304,0.19798199,26009.0,26007.0,1.308731]
[1693532813506,0.19798199,26009.0,26007.0,1.271731]
[1693532813762,0.19998199,26009.0,26007.0,1.296731]
[1693532813976,0.19798199,26009.0,26007.0,1.308731]
[1693532814187,0.20098199,26009.0,26007.0,1.345731]
[1693532818437,0.20098199,26009.0,26008.0,0.1182]
[1693532818640,0.29278449,26009.0,26008.0,0.1182]
[1693532819065,0.29278449,26009.0,26008.0,0.694945]
[1693532819626,0.29278449,26009.0,26008.0,0.731945]
[1693532820049,0.28978449,26009.0,26008.0,0.731945]
[1693532820200,0.29278449,26009.0,26008.0,0.768945]
[1693532824998,0.43048824,26009.0,26008.0,0.768945]
[1693532825194,0.29278449,26009.0,26008.0,0.768945]
[1693532825412,0.43048824,26009.0,26008.0,0.768945]
[1693532825592,0.33868574,26009.0,26008.0,0.768945]
[1693532826005,0.43068196,26009.0,26008.0,0.768945]
[1693532826205,0.43068146,26009.0,26008.0,0.768945]
[1693532826402,0.33868574,26009.0,26008.0,0.768945]
[1693532828888,0.52229074,26009.0,26008.0,0.768945]
[1693532829138,0.33868574,26009.0,26008.0,0.768945]
[1693532831090,0.6329792,26009.0,26008.0,0.768945]
[1693532831449,0.38458699,26009.0,26008.0,0.768945]
[1693532832151,0.52266175,26009.0,26008.0,0.768945]
[1693532832555,0.29302538,26009.0,26008.0,0.768945]
[1693532833783,0.38458699,26009.0,26008.0,0.768945]
[1693532833956,0.8637787,26009.0,26008.0,0.768945]
[1693532834160,1.65563771,26009.0,26008.0,0.074]
[1693532834336,2.00285445,26009.0,26008.0,0.074]
[1693532835107,2.00285445,26009.0,26008.0,0.037]
[1693532835600,2.00285445,26009.0,26008.0,0.067]
[1693532835762,2.00285445,26009.0,26008.0,0.037]
[1693532835967,1.99985445,26009.0,26005.0,0.694993]
[1693532836204,0.09201765,26006.0,26005.0,0.694993]
[1693532836982,0.09201765,26006.0,26005.0,1.271805]
[1693532837518,0.09501765,26006.0,26005.0,1.308805]
[1693532838296,0.09501765,26006.0,26005.0,0.731993]
[1693532838486,0.23399911,26006.0,26005.0,0.768993]
[1693532838982,0.09597264,26006.0,26005.0,0.768993]
[1693532839192,0.23399911,26006.0,26005.0,0.768993]
[1693532840189,0.09597264,26006.0,26005.0,0.768993]
[1693532842132,0.29418198,26006.0,26005.0,0.768993]
[1693532842982,0.31418198,26006.0,26005.0,0.768993]
[1693532844034,0.45220845,26006.0,26005.0,0.768993]
[1693532845030,0.45220845,26006.0,26005.0,0.1922]
[1693532845448,0.31418198,26006.0,26005.0,0.1922]
[1693532847437,2.61948634,26006.0,26005.0,0.074]
[1693532848429,2.61848634,26006.0,26005.0,0.037]
[1693532848805,0.02,26005.0,26002.0,0.1182]
[1693532849013,0.02,26001.0,26000.0,1.05246182]
[1693532849215,1.31163821,26001.0,26000.0,1.05246182]
[1693532849417,1.31163821,26001.0,26000.0,1.0033]
[1693532849624,1.26565359,26001.0,26000.0,1.0033]
[1693532850177,1.26865359,26001.0,26000.0,1.0403]
[1693532850373,1.26965359,26001.0,26000.0,1.0773]
[1693532851340,1.53041051,26001.0,26000.0,1.0773]
[1693532851588,1.43855692,26001.0,26000.0,1.0773]
[1693532854350,1.43855692,26001.0,26000.0,1.1955]
[1693532854351,0.024,26001.0,26000.0,1.1955]
[1693532854567,0.024,26001.0,26000.0,1.772423]
[1693532854775,0.024,26001.0,26000.0,3.044469]
[1693532856209,0.024,26001.0,26000.0,2.349346]
[1693532869098,0.004,26001.0,26000.0,3.044469]
[1693532869297,0.004,26001.0,26000.0,3.51579578]
[1693532869502,0.004,26001.0,26000.0,3.51405578]
[1693532869707,0.004,26001.0,26000.0,3.51387578]
[1693532869876,0.004,26001.0,26000.0,3.51315578]
[1693532870082,0.004,26001.0,26000.0,3.51285578]
[1693532870331,0.004,26001.0,26000.0,3.51309578]
[1693532870551,0.004,26001.0,26000.0,3.51192286]
[1693532870756,0.004,26001.0,26000.0,3.51000286]
[1693532871068,0.004,26001.0,26000.0,3.50988286]
[1693532871250,0.004,26001.0,26000.0,3.51036286]
[1693532871457,0.004,26001.0,26000.0,3.51366286]
[1693532871651,0.004,26001.0,26000.0,3.51588286]
[1693532871865,0.004,26001.0,26000.0,3.51552286]
[1693532872086,0.004,26001.0,26000.0,3.51528286]
[1693532872290,0.004,26001.0,26000.0,3.51504286]
[1693532872491,0.004,26001.0,26000.0,3.83874286]
[1693532872606,0.004,26001.0,26000.0,3.83196286]
[1693532872808,0.004,26001.0,26000.0,3.82806286]
[1693532873022,0.004,26001.0,26000.0,3.82674286]
[1693532873221,0.004,26001.0,26000.0,3.82542286]
[1693532873418,0.004,26001.0,26000.0,3.82446286]
[1693532873704,0.004,26001.0,26000.0,3.82458286]
[1693532873842,0.004,26001.0,26000.0,3.82518286]
[1693532874079,0.004,26001.0,26000.0,3.82554286]
[1693532874278,0.004,26001.0,26000.0,3.82530286]
[1693532874473,0.004,26001.0,26000.0,3.82524286]
[1693532874706,0.004,26001.0,26000.0,3.82278286]
[1693532874877,0.004,26001.0,26000.0,3.82308286]
[1693532875081,0.004,26001.0,26000.0,3.82170286]
[1693532875324,0.004,26001.0,26000.0,3.83370286]
[1693532875523,0.004,26001.0,26000.0,3.85508286]
[1693532875727,0.004,26001.0,26000.0,3.85634286]
[1693532875921,0.004,26001.0,26000.0,3.85904286]
[1693532876228,0.004,26001.0,26000.0,3.85382286]
[1693532876425,0.004,26001.0,26000.0,3.84134286]
[1693532876648,0.004,26001.0,26000.0,3.84212286]
[1693532876777,0.004,26001.0,26000.0,3.84176286]
[1693532876992,0.004,26001.0,26000.0,3.84656286]
[1693532877194,0.004,26001.0,26000.0,3.84422286]
[1693532877400,0.004,26001.0,26000.0,3.84170286]
[1693532877600,0.004,26001.0,26000.0,3.84056286]
[1693532877799,0.004,26001.0,26000.0,3.84032286]
[1693532878037,0.004,26001.0,26000.0,3.86933435]
[1693532878385,0.004,26001.0,26000.0,3.87029435]
[1693532878596,0.004,26001.0,26000.0,3.87005435]
[1693532878785,0.004,26001.0,26000.0,3.86987435]
[1693532878924,0.004,26001.0,26000.0,3.86981435]
[1693532879136,0.004,26001.0,26000.0,3.86975435]
[1693532879336,0.004,26001.0,26000.0,3.86963435]
[1693532879551,0.004,26001.0,26000.0,3.87329435]
[1693532879751,0.004,26001.0,26000.0,3.87311435]
[1693532880013,0.004,26001.0,26000.0,3.87965435]
[1693532880210,0.004,26001.0,26000.0,3.87977435]
[1693532880640,0.004,26001.0,26000.0,3.88235435]
[1693532880794,0.004,26001.0,26000.0,3.91219435]
[1693532881008,0.004,26001.0,26000.0,3.91555435]
[1693532881224,0.004,26001.0,26000.0,3.91525435]
[1693532881539,0.004,26001.0,26000.0,3.93081435]
[1693532881769,0.004,26001.0,26000.0,3.93501435]
[1693532881978,0.004,26001.0,26000.0,3.93519435]
[1693532882181,0.004,26001.0,26000.0,3.92835435]
[1693532882418,0.004,26001.0,26000.0,3.92877435]
[1693532882616,0.004,26001.0,26000.0,3.92529435]
[1693532882817,0.004,26001.0,26000.0,3.92499435]
[1693532883050,0.004,26001.0,26000.0,3.92481435]
[1693532883268,0.004,26001.0,26000.0,3.92457435]
[1693532883421,0.004,26001.0,26000.0,3.92031435]
[1693532883602,0.004,26001.0,26000.0,3.92241435]
[1693532883812,0.004,26001.0,26000.0,3.92589435]
[1693532884030,0.004,26001.0,26000.0,3.92841435]
[1693532884230,0.004,26001.0,26000.0,4.20829435]
[1693532884405,0.004,26001.0,26000.0,4.20625435]
[1693532884630,0.004,26001.0,26000.0,4.24345435]
[1693532884830,0.004,26001.0,26000.0,4.23145435]
[1693532885031,0.09185359,26007.0,26003.0,0.04]
[1693532885245,0.2496918,26008.0,26006.0,0.1182]
[1693532885410,0.2496918,26008.0,26007.0,1.271734]
[1693532885616,0.2496918,26008.0,26007.0,1.848501]
[1693532885810,0.15783821,26008.0,26007.0,1.848501]
[1693532886031,0.3416225,26008.0,26007.0,2.002429]
[1693532886237,0.15783821,26008.0,26007.0,2.002429]
[1693532886434,0.3416225,26008.0,26007.0,2.002429]
[1693532886817,0.15783821,26008.0,26007.0,2.002429]
[1693532887155,0.21578429,26008.0,26007.0,2.003429]
[1693532887384,0.35359746,26008.0,26007.0,2.008429]
[1693532889530,0.35359746,26008.0,26007.0,1.431662]
[1693532889961,0.35359746,26008.0,26007.0,1.421662]
[1693532891819,0.16981317,26008.0,26007.0,1.421662]
[1693532892185,0.26168368,26008.0,26007.0,1.421662]
[1693532892640,0.12387051,26008.0,26007.0,1.998429]
[1693532894792,0.10387051,26008.0,26007.0,1.998429]
[1693532895004,0.10387051,26008.0,26007.0,2.45145578]
[1693532895262,0.012,26008.0,26007.0,2.38551578]
[1693532895952,0.27567051,26009.0,26007.0,2.37951578]
[1693532896174,0.27567051,26009.0,26008.0,0.1182]
[1693532896362,0.27567051,26009.0,26008.0,1.848435]
[1693532897006,0.28067051,26009.0,26008.0,1.848435]
[1693532897235,0.30667051,26009.0,26008.0,1.850435]
[1693532897442,0.30167051,26009.0,26008.0,1.850435]
[1693532897825,0.30667051,26009.0,26008.0,1.850435]
[1693532899931,0.44448368,26009.0,26008.0,1.850435]
[1693532900186,0.56009895,26009.0,26008.0,0.696945]
[1693532900386,0.74388324,26009.0,26008.0,0.1202]
[1693532900793,0.56009895,26009.0,26008.0,0.1202]
[1693532901114,0.65194669,26009.0,26008.0,0.1202]
[1693532901309,0.65194669,26009.0,26008.0,0.696945]
[1693532904493,0.65194669,26009.0,26008.0,1.27369]
[1693532904687,0.44446091,26009.0,26008.0,1.27369]
[1693532905776,0.30664774,26009.0,26008.0,1.27369]
[1693532906788,0.30164774,26009.0,26008.0,1.27369]
[1693532906940,0.27564774,26009.0,26008.0,1.27569]
[1693532907324,0.28864774,26009.0,26008.0,1.853435]
[1693532908226,0.28864774,26009.0,26008.0,1.849435]
[1693532908409,0.42646091,26009.0,26008.0,1.849435]
[1693532908583,0.42646091,26009.0,26008.0,1.865435]
[1693532908990,0.41346091,26009.0,26008.0,1.848435]
[1693532909188,0.41346091,26009.0,26008.0,1.877435]
[1693532909406,0.41446091,26009.0,26008.0,1.891435]
[1693532909614,0.41346091,26009.0,26008.0,1.877435]
[1693532909814,0.41546091,26009.0,26008.0,1.875435]
[1693532910013,0.41546091,26009.0,26008.0,1.912435]
[1693532911383,0.32361317,26009.0,26008.0,1.33569]
[1693532912517,0.50739746,26009.0,26008.0,1.33569]
[1693532913309,0.75238035,26009.0,26008.0,1.33569]
[1693532913754,0.61456718,26009.0,26008.0,1.33569]
[1693532914582,0.86276651,26009.0,26008.0,1.33569]
[1693532914778,0.86276647,26009.0,26008.0,1.33569]
[1693532914961,0.61456718,26009.0,26008.0,1.33569]
[1693532915444,0.86276833,26009.0,26008.0,1.33569]
[1693532915764,0.61456718,26009.0,26008.0,1.33569]
[1693532915971,0.8627957,26009.0,26008.0,1.33569]
[1693532919765,1.09283982,26009.0,26008.0,1.33569]
[1693532920234,0.84785693,26009.0,26008.0,1.33569]
[1693532921626,0.66407264,26009.0,26008.0,1.33569]
[1693532922389,0.84798574,26009.0,26008.0,1.33569]
[1693532922568,0.66407264,26009.0,26008.0,1.33569]
[1693532927740,0.43402852,26009.0,26008.0,1.33569]
[1693532941725,0.43402852,26009.0,26008.0,1.912435]
[1693532941921,0.27022852,26009.0,26008.0,1.912435]
[1693532945011,0.50035969,26009.0,26008.0,1.912435]
[1693532945563,0.48035969,26009.0,26008.0,2.41772178]
[1693532945772,0.34267041,26009.0,26008.0,2.88722178]
[1693532946023,0.09405708,26009.0,26008.0,2.96686178]
[1693532946238,0.09405708,26009.0,26008.0,2.96722178]
[1693532946436,0.09405708,26009.0,26008.0,2.96692178]
[1693532946861,0.09405708,26009.0,26008.0,2.96674178]
[1693532947013,0.09405708,26009.0,26008.0,2.96302178]
[1693532947214,0.002,26009.0,26008.0,2.96284178]
[1693532947417,0.002,26009.0,26008.0,2.96392178]
[1693532947737,0.002,26009.0,26008.0,2.96170178]
[1693532947891,0.002,26009.0,26008.0,2.96176178]
[1693532948097,0.002,26009.0,26008.0,2.96128178]
[1693532948338,0.002,26009.0,26008.0,2.96122178]
[1693532948498,0.002,26009.0,26008.0,2.96098178]
[1693532948685,0.09205708,26010.0,26009.0,0.02]
[1693532948887,0.09205708,26010.0,26009.0,2.57545578]
[1693532949128,0.09205708,26010.0,26009.0,2.65891578]
[1693532949327,0.09205708,26010.0,26009.0,2.65861578]
[1693532949531,0.09205708,26010.0,26009.0,2.65855578]
[1693532949856,0.09205708,26010.0,26009.0,2.65837578]
[1693532950072,0.09205708,26010.0,26009.0,2.65825578]
[1693532950220,0.09205708,26010.0,26009.0,2.69513578]
[1693532950420,0.09205708,26010.0,26009.0,2.73183578]
[1693532950764,0.09205708,26010.0,26009.0,2.73225578]
[1693532950970,0.09205708,26010.0,26009.0,2.73195578]
[1693532951168,0.09205708,26010.0,26009.0,2.73279578]
[1693532951328,0.09205708,26010.0,26009.0,2.73267578]
[1693532951527,0.09205708,26010.0,26009.0,2.73255578]
[1693532951728,0.09205708,26010.0,26009.0,2.73249578]
[1693532951928,0.09205708,26010.0,26009.0,2.73231578]
[1693532952323,0.09205708,26010.0,26009.0,2.73333578]
[1693532952504,0.13808562,26011.0,26009.0,2.73333578]
[1693532952505,0.2301427,26011.0,26009.0,2.73333578]
[1693532952704,0.2301427,26011.0,26010.0,2.25538978]
[1693532952849,0.2301427,26011.0,26010.0,2.62276978]
[1693532953270,0.2301427,26011.0,26010.0,2.62354978]
[1693532953693,0.09405708,26011.0,26010.0,2.65820978]
[1693532953932,0.09405708,26011.0,26010.0,2.66636978]
[1693532954110,0.002,26011.0,26010.0,2.71158978]
[1693532954307,0.002,26011.0,26010.0,2.74488978]
[1693532954505,0.002,26011.0,26010.0,2.73588978]
[1693532954756,0.002,26011.0,26010.0,2.73420978]
[1693532954981,0.002,26011.0,26010.0,2.73192978]
[1693532955187,0.002,26011.0,26010.0,2.72964978]
[1693532955390,0.002,26011.0,26010.0,2.73402978]
[1693532955597,0.002,26011.0,26010.0,2.76652978]
[1693532955796,0.002,26011.0,26010.0,2.76634978]
[1693532955971,0.002,26011.0,26010.0,2.76724978]
[1693532956193,0.002,26011.0,26010.0,2.76688978]
[1693532956308,0.002,26011.0,26010.0,2.76640978]
[1693532956510,0.002,26011.0,26010.0,2.76634978]
[1693532956777,0.002,26011.0,26010.0,2.76616978]
[1693532957072,0.002,26011.0,26010.0,2.76418978]
[1693532957331,0.002,26011.0,26010.0,2.76460978]
[1693532957558,0.002,26011.0,26010.0,2.76406978]
[1693532957765,0.002,26011.0,26010.0,2.76430978]
[1693532957973,0.002,26011.0,26010.0,2.98550978]
[1693532958175,0.002,26011.0,26010.0,3.01276978]
[1693532958351,0.002,26011.0,26010.0,3.01750978]
[1693532958595,0.002,26011.0,26010.0,3.01468978]
[1693532958811,0.002,26011.0,26010.0,3.01132978]
[1693532959003,0.002,26011.0,26010.0,3.01240978]
[1693532959208,0.002,26011.0,26010.0,3.01246978]
[1693532959441,0.002,26011.0,26010.0,2.89036978]
[1693532959617,0.002,26011.0,26010.0,2.88964978]
[1693532959837,0.002,26011.0,26010.0,2.89138978]
[1693532960318,0.002,26011.0,26010.0,2.89162978]
[1693532960526,0.002,26011.0,26010.0,2.89120978]
[1693532960731,0.002,26011.0,26010.0,2.89192978]
[1693532961117,0.002,26011.0,26010.0,2.89198978]
[1693532961326,0.002,26011.0,26010.0,2.89048978]
[1693532961513,0.002,26011.0,26010.0,2.92123795]
[1693532961810,0.002,26011.0,26010.0,2.92153795]
[1693532962014,0.002,26011.0,26010.0,2.92141795]
[1693532962212,0.002,26011.0,26010.0,2.91943795]
[1693532962447,0.002,26011.0,26010.0,2.91823795]
[1693532962765,0.002,26011.0,26010.0,2.91241795]
[1693532962881,0.002,26011.0,26010.0,2.91169795]
[1693532963083,0.002,26011.0,26010.0,2.91127795]
[1693532963285,0.002,26011.0,26010.0,2.91049795]
[1693532963481,0.002,26011.0,26010.0,2.91043795]
[1693532963687,0.002,26011.0,26010.0,2.91037795]
[1693532964211,0.002,26011.0,26010.0,2.91043795]
[1693532964420,0.002,26011.0,26010.0,2.91049795]
[1693532964599,0.002,26011.0,26010.0,2.91121795]
[1693532964795,0.002,26011.0,26010.0,2.91115795]
[1693532965054,0.002,26011.0,26010.0,2.91139795]
[1693532965263,0.002,26011.0,26010.0,2.91151795]
[1693532965471,0.002,26011.0,26010.0,2.91163795]
[1693532965681,0.002,26011.0,26010.0,2.91175795]
[1693532965884,0.002,26011.0,26010.0,2.91235795]
[1693532966251,0.002,26011.0,26010.0,2.91211795]
[1693532966455,0.002,26011.0,26010.0,2.91253795]
[1693532966666,0.002,26011.0,26010.0,2.91223795]
[1693532966796,0.002,26011.0,26010.0,2.91247795]
[1693532966983,0.002,26011.0,26010.0,2.91025795]
[1693532967185,0.002,26011.0,26010.0,2.90965795]
[1693532967585,0.002,26011.0,26010.0,2.90983795]
[1693532967790,0.002,26011.0,26010.0,2.90899795]
[1693532967989,0.002,26011.0,26010.0,2.90881795]
[1693532968269,0.002,26011.0,26010.0,2.90905795]
[1693532968477,0.002,26011.0,26010.0,2.90881795]
[1693532968648,0.002,26011.0,26010.0,2.91019795]
[1693532968870,0.002,26011.0,26010.0,2.79013795]
[1693532969066,0.002,26011.0,26010.0,2.91007795]
[1693532969279,0.002,26011.0,26010.0,2.91601795]
[1693532969477,0.002,26011.0,26010.0,2.91637795]
[1693532969633,0.002,26011.0,26010.0,2.91373795]
[1693532970003,0.002,26011.0,26010.0,2.91061795]
[1693532970385,0.002,26011.0,26010.0,2.91007795]